Cogmind - Beta 15 @@@ ROGUE MODE // 2025.09.24 @ 11:55:37 Player: Ice_Kraken505 Result: Destroyed by S-27 Virus with Autogun Performance ------------- Evolutions (3) 1500 Regions Visited (4) 800 Robots Destroyed (73) 365 Value Destroyed (1556) 1556 Prototype IDs (7) 140 Alien Tech Used (0) 0 Bonus (0) 0 TOTAL SCORE: 4361 Bonus ------- None Cogmind --------- Core Integrity 0/700 Matter 68/300 Energy 98/100 System Corruption 1% Temperature Cool (0) Movement Core (50) Location -7/Factory Parts ------- > --- POWER (2) -------- (None) > --- PROPULSION (3) --- (None) > --- UTILITY (5) ------ Targeting Computer Targeting Computer Target Analyzer > --- WEAPON (3) ------- (None) > --- INVENTORY (5) ---- Improved Flight Unit Target Analyzer Core Analyzer Improved EM Shotgun Peak State ------------ > --- POWER ------------ Light Ion Engine Improved Deuterium Engine > --- PROPULSION ------- Wheel Improved Flight Unit > --- UTILITY ---------- Targeting Computer Targeting Computer Target Analyzer Advanced ECM Suite Hacking Suite > --- WEAPON ----------- Gauss Rifle Precision Assault Rifle Advanced Assault Cannon > --- INVENTORY -------- Target Analyzer Target Analyzer Core Analyzer Spread Laser Remote Datajack [Rating: 35] Favorites ----------- Power Light Nuclear Core Engine Ion Engine Power Core Light Nuclear Core Propulsion Improved Flight Unit Treads Light Treads Wheel Wheel Flight Unit Improved Flight Unit Utility Targeting Computer Device Improved Heat Sink Storage Small Storage Unit Processor Targeting Computer Hackware Hacking Suite Weapon Medium Laser Energy Gun Medium Laser Energy Cannon Advanced Beam Cannon Ballistic Gun Enhanced Autogun Ballistic Cannon Advanced Assault Cannon Launcher Precision Grenade Launcher Special Weapon Remote Datajack Build | -11 -10 -9 -8 -7 ------- Run | Yrd Mat Mat Mat Fac Slots Evolved 6 | . . 2 2 2 Power 1 | . . . 1 . Propulsion 1 | . . 1 . . Utility 3 | . . 1 1 1 Weapon 1 | . . . . 1 Parts Attached 59 | 8 5 18 6 22 Power 13 | 1 1 3 3 5 Engine 11 | 1 . 3 3 4 Core 2 | . 1 . . 1 Reactor . | . . . . . Propulsion 16 | 2 2 4 1 7 Treads 5 | 2 . . . 3 Leg . | . . . . . Wheel 4 | . . . . 4 Hover . | . . . . . Flight 7 | . 2 4 1 . Utility 13 | 3 1 5 2 2 Device 6 | 2 1 1 1 1 Storage 2 | 1 . 1 . . Processor 4 | . . 2 1 1 Hackware 1 | . . 1 . . Protection . | . . . . . Artifact . | . . . . . Weapon 17 | 2 1 6 . 8 Energy Gun 8 | 2 1 4 . 1 Energy Cannon 1 | . . 1 . . Ballistic Gun 5 | . . 1 . 4 Ballistic Cannon 1 | . . . . 1 Launcher 1 | . . . . 1 Special Weapon 1 | . . . . 1 Impact Weapon . | . . . . . Slashing Weapon . | . . . . . Piercing Weapon . | . . . . . Special Melee Weapon . | . . . . . Unidentified Prototypes 7 | . . 4 . 3 Corrupted Parts 2 | . 2 . . . System Corruption 4 | . 4 . . . Parts Lost 30 | . . 8 6 16 Power 8 | . . 2 1 5 Propulsion 11 | . . 3 2 6 Utility 3 | . . . 1 2 Weapon 8 | . . 3 2 3 Highest Loss Streak 13 | . . 4 5 13 To Critical Strikes . | . . . . . Average Backups 4 | 2 5 3 4 4 Power . | . 1 . . . Propulsion 1 | 1 2 1 1 . Utility 1 | . 1 . 2 2 Weapon . | . . . . . Tool/Special . | . . . . . Unused Backups 15 | . 3 4 3 5 Power . | . . . . . Propulsion 6 | . 2 4 . . Utility 7 | . . . 2 5 Weapon 2 | . 1 . 1 . Tool/Special . | . . . . . Average Slot Usage (%) 84 | . 95 89 90 71 Engine 6 | . 4 6 13 5 Core 4 | . 9 3 . 1 Treads 8 | . 23 5 . 1 Wheel 1 | . . . . 4 Flight 10 | . 4 20 25 5 Device 10 | . 18 11 7 5 Storage 1 | . 5 . . . Processor 15 | . . 18 19 23 Hackware 3 | . . . 9 5 Energy Gun 14 | . 28 17 16 1 Ballistic Gun 3 | . . 4 . 7 Special Weapon 1 | . . . . 3 Peak Build Rating 35 | 9 13 22 27 35 Average Rating 18 | 4 10 13 24 26 On Entrance 11 | . 9 13 22 11 Naked Turns . | . . . . . Heaviest Build 30 | 14 15 11 15 30 Greatest Support 50 | 40 40 40 15 50 Greatest Overweight (x) 7 | 4 3 3 . 7 Average Overweight (x) . | . . . . 1 Largest Inventory Capacity 8 | 8 8 5 5 5 Average Capacity 5 | 7 6 5 5 5 Most Carried 7 | 5 7 5 5 5 Average Carried 4 | 3 5 3 4 4 Final Capacity 8 | 8 5 5 5 5 Final Carried 5 | 5 5 4 3 4 Class Distribution -------------------- 66% | Mutant 18% | Gunner 10% | Scavenger-Mutant 4% | Scavenger-Gunner Dominant Class ---------------- Mutant | -10/Materials Mutant | -9/Materials Scavenger-Mutant | -8/Materials Gunner | -7/Factory Resources | -11 -10 -9 -8 -7 ----------- Run | Yrd Mat Mat Mat Fac Matter Collected 1236 | 267 57 287 109 516 Remotely 146 | 146 . . . . Salvage Created 2477 | 89 162 814 379 1033 Parts 162 | 5 14 63 34 46 Haulers Intercepted 7 | . . 2 1 4 Recyclers Shooed 6 | . 2 . . 4 Parts Field Recycled . | . . . . . Retrieved Matter . | . . . . . Parts Self-Destructed . | . . . . . Prevented . | . . . . . Kills | -11 -10 -9 -8 -7 ------- Run | Yrd Mat Mat Mat Fac Combat Hostiles Destroyed 48 | . 5 20 10 13 Guns 44 | . 5 20 10 9 Cannons 4 | . . . . 4 Classes Destroyed 13 | 2 3 4 . 4 Worker 5 | . . 1 . 4 Builder 2 | . . . . 2 Tunneler 1 | 1 . . . . Hauler 7 | . . 2 1 4 Recycler 6 | 1 . 1 . 4 Operator 1 | . . 1 . . Drone 1 | . . . . 1 Watcher 4 | . 1 1 1 1 Swarmer 19 | . 3 9 7 . Grunt 22 | . 2 10 . 10 Sentry 4 | . . 1 3 . Hunter 1 | . . . . 1 Programmer 1 | . . . . 1 Best Kill Streak 14 | 1 3 14 8 7 Combat Bots Only 11 | . 3 11 4 7 Max Kills in Single Turn 2 | 1 1 1 2 1 Gunslinging 1 | . . . 1 . Exploded . | . . . . . Melee . | . . . . . Uniques/NPCs Destroyed . | . . . . . Combat | -11 -10 -9 -8 -7 -------- Run | Yrd Mat Mat Mat Fac Hostile Shots Fired 425 | . 10 105 58 252 Missed 150 | . 3 40 21 86 Hits 275 | . 7 65 37 166 Melee 5 | . . . 5 . Projectile 270 | . 7 65 32 166 AOE 2 | . . . 2 . Critical Strikes 10 | . . . 6 4 Damage Taken 3567 | . 121 660 587 2199 Core 1179 | . 26 232 211 710 Absorbed by Shields . | . . . . . Core Remaining (%) 73 | 100 89 42 61 . Volleys Fired 159 | 4 16 50 19 70 Largest 3 | 2 2 2 2 3 Hottest 133 | 90 90 90 90 133 Shots Fired 315 | 8 27 92 37 151 Gun 275 | 8 27 92 37 111 Cannon 36 | . . . . 36 Launcher . | . . . . . Special 4 | . . . . 4 Kinetic 146 | . . 24 . 122 Thermal 102 | 8 21 48 . 25 Explosive . | . . . . . Electromagnetic 63 | . 6 20 37 . Robot Hit Streak 17 | 3 17 14 13 15 Robot Miss Streak 6 | 4 6 4 4 5 Penetration Max 1 | . . . . 1 Secondary Targets 8 | . . 4 2 2 Max Gunslinging Chain 1 | . . 1 1 1 Shots Hit Robots 223 | 3 18 60 32 110 Core Hits 133 | 2 10 42 19 60 Critical Kills 3 | . . . . 3 Critical Parts Destroyed 4 | . . . . 4 Critical Strikes 9 | . . 1 . 8 Burn 1 | . . 1 . . Destroy 7 | . . . . 7 Blast 1 | . . . . 1 Melee Attacks . | . . . . . Impact . | . . . . . Slashing . | . . . . . Piercing . | . . . . . Sneak Attacks . | . . . . . Combat Hostiles . | . . . . . Follow-up Attacks . | . . . . . Damage Inflicted 3833 | 42 233 876 479 2203 Guns 3172 | 36 224 876 479 1557 Cannons 635 | . . . . 635 Explosions . | . . . . . Melee . | . . . . . Ramming 26 | 6 9 . . 11 Kinetic 2176 | . . 322 . 1854 Thermal 894 | 36 158 362 . 338 Explosive . | . . . . . Electromagnetic 737 | . 66 192 479 . Impact . | . . . . . Slashing . | . . . . . Piercing . | . . . . . Highest Corruption 11 | . 11 . . 1 Average Corruption 4 | . 6 . . 1 Corruption Purged . | . . . . . Corruption Blocked . | . . . . . Effects 12 | . 9 . . 3 Message Errors 3 | . 2 . . 1 Matter Fused 3 | . 2 . . 1 Energy Discharges 1 | . 1 . . . Data Loss (minor) 2 | . 2 . . . Data Loss (major) 2 | . 1 . . 1 Alerts 1 | . 1 . . . Overload Shots . | . . . . . Overflow Damage 12 | . . . . 12 Projectiles 12 | . . . . 12 Explosions . | . . . . . Melee . | . . . . . Knockbacks 4 | . . . . 4 Impact . | . . . . . Kinetic 4 | . . . . 4 Secondary . | . . . . . Self-Inflicted Damage 3 | . . . . 3 Shots . | . . . . . Rammed 9 | 2 2 . . 5 Targets Rammed 10 | 3 2 . . 5 Kicked . | . . . . . Crushed 1 | 1 . . . . Highest Temperature 297 | 120 210 13 171 297 Average Temperature 81 | 61 71 6 79 88 Received Heat Transfer 900 | . 30 258 81 531 Siege Activations . | . . . . . Martial Activations . | . . . . . Shielding Activations . | . . . . . Robots Disrupted . | . . . . . Combat Hostiles . | . . . . . Robots Corrupted . | . . . . . Combat Hostiles . | . . . . . Parts Fried 4 | . . . 4 . Impact Corruptions . | . . . . . Robots Melted . | . . . . . Combat Hostiles . | . . . . . Parts Melted 1 | 1 . . . . Heat Transferred 2019 | 99 445 1040 . 435 Parts Sabotaged . | . . . . . Parts Stolen . | . . . . . Parts Stripped . | . . . . . Power Chain Reactions . | . . . . . Alert | -11 -10 -9 -8 -7 ------- Run | Yrd Mat Mat Mat Fac Maximum Alert Level 1 | . . 1 1 1 Low Security (%) 74 | 100 100 60 23 71 Level 1 25 | . . 39 76 28 Level 2 . | . . . . . Level 3 . | . . . . . Level 4 . | . . . . . Level 5 . | . . . . . High Security . | . . . . . Max Security . | . . . . . Peak Influence 364 | 5 60 323 364 259 Initial 142 | . 3 . 130 142 Average 107 | 1 18 147 267 131 Influence Increases 1443 | 10 166 538 324 405 Destroy 0b10 Robot/C 940 | . 100 400 200 240 Destroy 0b10 Robot/NC 135 | 10 5 30 10 80 Destroy Leader 190 | . 22 66 54 48 Successful Hack 80 | . 39 27 . 14 Disable Machine 15 | . . 15 . . Destroy Structure 8 | . . . . 8 Partial Spotted 30 | . . . 30 . Lose Combat Pursuer 45 | . . . 30 15 Influence Decreases 1443 | 5 171 230 318 719 Entered New Map 352 | . 2 . 178 172 Time Decay 682 | 5 169 150 80 278 Lost Part 259 | . . 80 60 119 Purge Threat 150 | . . . . 150 Squads Dispatched 11 | . 2 2 1 6 Investigation 3 | . 2 1 . . Extermination 1 | . . . . 1 Reinforcement 7 | . . 1 1 5 Assault . | . . . . . Garrison . | . . . . . Intercept . | . . . . . Searches Triggered . | . . . . . Construction Impeded 1 | . . . . 1 Haulers Reinforced 3 | . . . . 3 Active Scanning Responses . | . . . . . Cargo Convoy Interrupts . | . . . . . Stealth | -11 -10 -9 -8 -7 --------- Run | Yrd Mat Mat Mat Fac Distress Signals 11 | . 2 2 4 3 Communications Jammed . | . . . . . Distress Signals . | . . . . . Times Spotted 89 | . 11 25 21 32 Peak Tracking Total 13 | . 4 5 7 13 Tactical Retreats 4 | . . . 2 2 Traps | -11 -10 -9 -8 -7 ------- Run | Yrd Mat Mat Mat Fac Traps Triggered 6 | . 5 . . 1 Indirectly . | . . . . . Trap Hack Attempts . | . . . . . Triggered . | . . . . . Disarmed . | . . . . . Reprogrammed . | . . . . . Reused . | . . . . . Traps Extracted . | . . . . . Installed . | . . . . . Triggered . | . . . . . Machines | -11 -10 -9 -8 -7 ---------- Run | Yrd Mat Mat Mat Fac Machines Disabled 1 | . . 1 . . Max in Single Turn 1 | . . 1 . . Machines Repaired . | . . . . . Machines Dismantled . | . . . . . Machines Sabotaged . | . . . . . Overloaded Fab Kills . | . . . . . Hacking | -11 -10 -9 -8 -7 --------- Run | Yrd Mat Mat Mat Fac Machines Accessed 9 | . 5 2 1 1 Terminals 8 | . 4 2 1 1 Fabricators . | . . . . . Repair Stations . | . . . . . Recycling Units 1 | . 1 . . . Scanalyzers . | . . . . . Garrison Access . | . . . . . Total Hacks 27 | . 11 6 7 3 Successful 18 | . 8 5 3 2 Failed 9 | . 3 1 4 1 Catastrophic 3 | . 1 1 1 . Database Lockouts . | . . . . . Manual 14 | . 4 5 5 . Terminals 26 | . 10 6 7 3 Fabricators . | . . . . . Repair Stations . | . . . . . Recycling Units 1 | . 1 . . . Scanalyzers . | . . . . . Garrison Access . | . . . . . Terminal Hacks 12 | . 5 3 2 2 Robot Schematic 1 | . . . . 1 Robot Analysis 1 | . . . 1 . Level Access Points 1 | . . 1 . . Branch Access Points 2 | . 1 1 . . Emergency Access Points 1 | . 1 . . . Unreport Threat 1 | . . . . 1 Locate Traps 2 | . 2 . . . Zone Layout 3 | . 1 1 1 . Fabricator Hacks . | . . . . . Repair Station Hacks . | . . . . . Recycling Unit Hacks 1 | . 1 . . . Report Inventory 1 | . 1 . . . Scanalyzer . | . . . . . Garrison Access Hacks . | . . . . . Unauthorized Hacks 5 | . 2 2 1 . Terminals 5 | . 2 2 1 . Track 5 | . 2 2 1 . Fabricators . | . . . . . Repair Stations . | . . . . . Recycling Units . | . . . . . Scanalyzers . | . . . . . Garrison Access . | . . . . . Data Cores Recovered . | . . . . . Used . | . . . . . Hacking Detections 7 | . 4 1 1 1 Full Trace Events 5 | . 3 1 1 . Feedback Events 1 | . 1 . . . Corruption 1 | . 1 . . . Feedback Blocked . | . . . . . Robot Schematics Acquired 1 | . . . . 1 Robots Built . | . . . . . Authchips . | . . . . . Time . | . . . . . Total Robot Build Rating . | . . . . . Part Schematics Acquired . | . . . . . Parts Built . | . . . . . Authchips . | . . . . . Time . | . . . . . Total Part Build Rating . | . . . . . Parts Repaired . | . . . . . Time . | . . . . . Parts Recycled . | . . . . . Recycled Matter . | . . . . . Retrieved Matter . | . . . . . Retrieved Components . | . . . . . Parts Scanalyzed . | . . . . . Part Schematics Acquired . | . . . . . Parts Damaged . | . . . . . Bothacking | -11 -10 -9 -8 -7 ------------ Run | Yrd Mat Mat Mat Fac Used RIF Installer . | . . . . . Robots Hacked 2 | . . . . 2 Non-combat 2 | . . . . 2 Combat . | . . . . . Robot Hacks Applied 2 | . . . . 2 parse_system 1 | . . . . 1 no_distress 1 | . . . . 1 Relay Couplers Released . | . . . . . Fabnet Peak Effective % . | . . . . . Robots Rewired . | . . . . . Allies Hacked . | . . . . . Hacks Repelled . | . . . . . Allies | -11 -10 -9 -8 -7 -------- Run | Yrd Mat Mat Mat Fac Total Allies . | . . . . . Largest Group . | . . . . . Highest-Rated Group . | . . . . . Highest-Rated Ally . | . . . . . Total Orders . | . . . . . Ally Attacks . | . . . . . Total Damage . | . . . . . Kills . | . . . . . Allies Corrupted . | . . . . . Allies Melted . | . . . . . Intel | -11 -10 -9 -8 -7 ------- Run | Yrd Mat Mat Mat Fac Active Infowar (turns) 709 | 7 511 26 2 163 Terrain 544 | 7 511 26 . . Traps 2 | . . . 2 . ECM 163 | . . . . 163 Robot Analysis Total 1 | . . . 1 . Derelict Logs Recovered . | . . . . . Drone Launches . | . . . . . Drone Recoveries . | . . . . . Exploration | -11 -10 -9 -8 -7 ------------- Run | Yrd Mat Mat Mat Fac Turns Passed 1844 | 118 511 360 173 682 Spaces Moved 1163 | 52 267 262 236 346 Core 68 | 23 . 1 . 44 Treads 350 | 29 232 49 . 40 Legs . | . . . . . Wheels 103 | . . . . 103 Hover . | . . . . . Flight 642 | . 35 212 236 159 Fastest Speed 34 | 50 117 34 34 40 Average Speed 99 | 156 154 60 34 122 Slowest Speed 400 | 250 280 200 40 400 Overloaded Moves . | . . . . . Propulsion Burnouts . | . . . . . Robots Hopped 2 | . . . 2 . Potential Cave-ins . | . . . . . Cave-ins Triggered . | . . . . . Exploration Rate (%) 25 | 4 52 27 30 12 Regions Visited 4 Branch Regions . Pre-discovered Areas . | . . . . . Known Exits Taken 1 | . . 1 . . Unknown Exits Taken 3 | 1 1 . 1 . Scrap Searched . | . . . . . Spaces Dug . | . . . . . Terrain Destroyed 6 | . . . . 6 Melee . | . . . . . Projectile 6 | . . . . 6 AOE . | . . . . . Terrain Rammed . | . . . . . Walls Destroyed . | . . . . . Machines Disabled . | . . . . . Actions | -11 -10 -9 -8 -7 --------- Run | Yrd Mat Mat Mat Fac Total 1569 | 78 341 374 289 487 Wait 36 | . 12 3 14 7 Move 1155 | 51 266 261 231 346 Hop 2 | . . . 2 . Pick Up 86 | 12 18 22 9 25 Fast Attach . | . . . . . Attach 48 | 7 5 13 6 17 Detach 5 | . 1 2 1 1 Swap 27 | 1 6 10 2 8 Drop 41 | . 15 13 5 8 Fire 159 | 4 16 50 19 70 Melee . | . . . . . Ram 4 | . . . . 4 Kick . | . . . . . Crush 6 | 3 2 . . 1 Escape Stasis . | . . . . . Rewire . | . . . . . Trap . | . . . . . Miscellaneous . | . . . . . Route ------- -11/Scrapyard -10/Materials (discovered 2 exits: *Mat / Min) -9/Materials (discovered 6 exits: *Mat x3 / Min / Sto x2) -8/Materials -7/Factory History --------- Turn | Location | Event 12 | -11/Scrapyard | Discovered new exit (range 16) 119 | -11/Scrapyard | Entered Materials 335 | -10/Materials | Build established: Mutant 361 | -10/Materials | Identified exit to Mines 459 | -10/Materials | System corruption reached 10% 548 | -10/Materials | Discovered new exit (range 12) 630 | -10/Materials | Entered another Materials area 630 | -9/Materials | Evolved 2 slots: Propulsion x1, Utility x1 887 | -9/Materials | Lost 4 parts (3n1w) 902 | -9/Materials | Destroyed 11 combat bots 916 | -9/Materials | Core integrity fell below 50% 952 | -9/Materials | Lost 3 parts (1p2w) 975 | -9/Materials | Discovered new exit (range 16) 987 | -9/Materials | Identified exit to Materials 987 | -9/Materials | Identified exit to Mines 987 | -9/Materials | Identified exit to Storage 990 | -9/Materials | Entered another Materials area 990 | -8/Materials | Evolved 2 slots: Power x1, Utility x1 1160 | -8/Materials | Discovered new exit (range 8) 1163 | -8/Materials | Entered Factory 1163 | -7/Factory | Evolved 2 slots: Utility x1, Weapon x1 1187 | -7/Factory | Lost 5 parts (2n1u2w) 1584 | -7/Factory | Lost 3 parts (2p1n) 1596 | -7/Factory | Destroyed 7 combat bots 1814 | -7/Factory | Core integrity fell below 50% 1836 | -7/Factory | Core integrity fell below 20% 1845 | -7/Factory | Destroyed by S-27 Virus with Autogun Last Messages --------------- Slug penetrates Power Conduit. Slammed into U-05 Engineer. Remote Datajack destroyed. Wheel destroyed. Slug penetrates Wall. Penetrated by Slug. Adv. Treads destroyed. Med. Treads destroyed. U-05 Engineer destroyed. Slammed into S-27 Virus. K-01 Serf collects debris. K-01 Serf cleans the Neutrino Reactor. Acquired Imp. EM Shotgun. K-01 Serf destroyed. K-01 Serf cleans the Neutrino Reactor. Triggered Ambush Trap. B-48 Gladiator emerges from a hatch in the floor. S-27 Virus emerges from a hatch in the floor. Map ----- +----------------------------------------------------+ | ?????????????????????????????????????????????????? | | ?????????????????????????????????????????????????? | | ?????????????????????????????????????????????????? | | ?????????????????????????????????????????????????? | | ?????????????????????????????????????????????????? | | ??????????????????????????###????????????????????? | | ?????????????????????????? ??? #???????????????? | | ??????????????????????????" "?? #???????????????? | | ??????????????????????????" """ #???????????????? | | ????????????????????#!???"" R" #####+########### | | ????????????????????# """" """ # | | ????????????????????# """" # | | ????????????????????# """" # | | ????????????????????# = # | | ????????????????????? # | | ??????????????????????? # | | ????????????????????????? = # | | ??????????????????????????? ?# ######/## | | ????????????????????????#####+#### ! # | | ?????????????????######## ^ *%= # """ " | | ?????????????????# s = # """ " | | ?????????????????# k [ [ # """ " | | ?????????????????# """ [[[ # | | ?????????????????# """ [[ # """ " | | ?????????????????# """ b # """ " | | ?????????????????# s@ # ??? " | | ?????????????????# """ """ """ # ??? | | ???????????? """ """ """ #??????## | | ??????????? """ """ """ ??????? | | ??????????? """ ?????? | | ???????????? """"" """ """ ????? | | ????????????????"" =! "?" """ ???? | | ??????????????? =! "?" "?? ! ???? | | ??????????????? ? ?? ?????? | | ??????????????] ! ? ??????????????? | | ?????????????? ##########? ??????????????? | | ?????????????? ??????????? ??????????????? | | ???????????????? !! ??????????????????????????? | | ??????????????????! ??????????????????????????? | | ?????????????????????#???????????????????????????? | | ?????????????????????????????????????????????????? | | ?????????????????????????????????????????????????? | | ?????????????????????????????????????????????????? | | ?????????????????????????????????????????????????? | | ?????????????????????????????????????????????????? | | ?????????????????????????????????????????????????? | | ?????????????????????????????????????????????????? | | ?????????????????????????????????????????????????? | | ?????????????????????????????????????????????????? | | ?????????????????????????????????????????????????? | +----------------------------------------------------+ Best States ------------- Heat Dissipation 45 Energy Generation 23 Energy Capacity 315 Matter Stores 300 Matter Capacity 300 Sight Range 16 Terrain Scan Range 16 Terrain Scan Density 10 ECM Strength 2 Evasion (%) 63 Targeting Accuracy 18 Target Analysis 5 Recoil Reduction 2 Offensive Hacking 10 Item Schematics ----------------- None Robot Schematics ------------------ K-01 Serf | -7/Factory | Hacked Fabricated ------------ Nothing Repaired ---------- Nothing Alien Tech Used ----------------- None Achievements -------------- None Challenges ------------ None Game ------ Seed HelicalLayeredNanoactuators Manual? 0 Play Time 00:52:24 Cumulative 15.5 hours Start 2025.09.24 @ 11:00:24 End 2025.09.24 @ 11:55:37 Sessions 1 Manual Loads 0 Difficulty Rogue Special Mode None Game No. 16 Rogue 16 Adventurer 0 Explorer 0 Win Type - Total 0 Types 0/0/0/0/0/0/0/0/0/0 Lore% 10 Gallery% 16 Achievement% 17 Wizard Run 0 Options --------- Layout 1 ASCII 0 Keyboard 1 Movement Arrows Keybinds 0 Fullscreen 1 Font 24/Smallcaps Map View 50x35 Zoom Use 0% Tactical HUD 0 Map Filters NONE Filters NONE Steam 1 RUN: 0a5303c6-8d34-4f91-85b5-7876b179a2b7